Cogmind - Beta 10.2 *** ADVENTURER MODE // 2021.03.04 @ 21:40:34 Player: DUMBBITCHINDYSTOPIA Result: Self-destructed Performance ------------- Evolutions (4) 2000 Regions Visited (17) 3400 Robots Destroyed (113) 565 Value Destroyed (4671) 4671 Prototype IDs (37) 740 Alien Tech Used (0) 0 Bonus (1961) 1961 TOTAL SCORE: 13337 Bonus ------- High Alert Combat Kills 93 Follower Combat Kills 713 Entered Garrisons 400 Used RIF Installer 500 Met Data Miner 300 Friendly Fire -45 Cogmind --------- Core Integrity 64/850 Matter 300/300 Energy 160/160 System Corruption 23% Temperature Cool (0) Movement Treading (160) Location -6/Factory Parts ------- > --- POWER (2) -------- Light Fission Core > --- PROPULSION (3) --- Medium Treads Medium Treads Cooled VTOL Module > --- UTILITY (8) ------ Medium Storage Unit Advanced Signal Interpreter Relay Coupler [NC] (22) Relay Coupler [Grunt] (9) Relay Coupler [Hunter] (7) > --- WEAPON (2) ------- Mace Plasma Sword > --- INVENTORY (8) ---- Relay Coupler [Grunt] (28) Relay Coupler [Hunter] (12) Drone Bay (2/2) Precision Assault Rifle Remote Datajack Remote Datajack Peak State ------------ > --- POWER ------------ Light Nuclear Core > --- PROPULSION ------- Cooled VTOL Module Cooled VTOL Module Cooled VTOL Module > --- UTILITY ---------- Medium Storage Unit Advanced Signal Interpreter Improved Light Armor Plating Advanced Hacking Suite Relay Coupler [NC] Relay Coupler [Swarmer] Relay Coupler [Grunt] Relay Coupler [Hunter] > --- WEAPON ----------- Precision Assault Rifle Plasma Sword > --- INVENTORY -------- Cooled VTOL Module Hardlight Generator Relay Coupler [Grunt] Relay Coupler [Hunter] Drone Bay Remote Datajack Remote Datajack Mace [Rating: 58] Favorites ----------- Power Light Nuclear Core Engine Light Deuterium Engine Power Core Light Nuclear Core Reactor Cold Fusion Reactor Propulsion Aerolev Unit Treads Light Treads Leg Carbon-fiber Leg Wheel Wheel Hover Unit Aerolev Unit Flight Unit VTOL Module Utility Medium Storage Unit Device Long-range Sensor Array Storage Medium Storage Unit Processor Advanced Signal Interpreter Hackware Advanced Hacking Suite Protection Improved Light Armor Plating Weapon Chainsword Energy Gun Riot Gun Energy Cannon Improved EM Pulse Cannon Ballistic Gun Gauss Rifle Launcher Heavy Rocket Launcher Special Weapon Remote Datajack Impact Weapon Mace Slashing Weapon Chainsword Piercing Weapon Spear Build | -11 -10 -10 -10 -9 -8 -7 -7 -7 -7 -7 -7 -7 -7 -6 -6 -6 -6 ------- Run | Scr Mat Min Exi Min Mat Fac Was Fac Gar Fac Low Low Dat Pro Fac Gar Fac Slots Evolved 8 | . . . . . 4 2 . . . . . . . . 2 . . Power 1 | . . . . . . 1 . . . . . . . . . . . Propulsion 1 | . . . . . 1 . . . . . . . . . . . . Utility 6 | . . . . . 3 1 . . . . . . . . 2 . . Weapon . | . . . . . . . . . . . . . . . . . . Parts Attached 229 | 7 5 5 . 2 47 22 6 12 6 29 13 8 1 2 18 24 22 Power 32 | 1 . 1 . . 4 8 . 2 . 4 1 2 . 1 1 4 3 Engine 9 | 1 . 1 . . . 2 . 1 . 1 . 1 . . 1 . 1 Core 22 | . . . . . 4 6 . 1 . 3 1 1 . 1 . 4 1 Reactor 1 | . . . . . . . . . . . . . . . . . 1 Propulsion 48 | 2 2 . . . 13 . 1 3 . 4 2 1 . . 7 4 9 Treads 5 | . . . . . . . . . . . 2 . . . 1 . 2 Leg 3 | . . . . . 1 . . . . . . 1 . . . . 1 Wheel 2 | 2 . . . . . . . . . . . . . . . . . Hover 22 | . 2 . . . 8 . 1 3 . 4 . . . . 1 1 2 Flight 16 | . . . . . 4 . . . . . . . . . 5 3 4 Utility 63 | 2 1 1 . . 15 7 1 3 2 9 3 2 . . 5 7 5 Device 27 | 1 1 1 . . 7 2 . 2 . 5 2 2 . . 1 1 2 Storage 4 | 1 . . . . 2 . . . . . . . . . . . 1 Processor 6 | . . . . . 2 1 . 1 . 1 . . . . 1 . . Hackware 20 | . . . . . 3 2 1 . 2 3 . . . . 3 4 2 Protection 6 | . . . . . 1 2 . . . . 1 . . . . 2 . Artifact . | . . . . . . . . . . . . . . . . . . Weapon 86 | 2 2 3 . 2 15 7 4 4 4 12 7 3 1 1 5 9 5 Energy Gun 19 | . . . . . 4 2 . . 1 5 3 1 . 1 . 2 . Energy Cannon 6 | . . . . . . 3 1 2 . . . . . . . . . Ballistic Gun 22 | 2 . 3 . 2 7 . . 1 . 1 . 1 . . 1 3 1 Ballistic Cannon . | . . . . . . . . . . . . . . . . . . Launcher 9 | . 2 . . . 2 . 1 . 1 1 2 . . . . . . Special Weapon 12 | . . . . . . . 1 1 2 2 . . 1 . 3 1 1 Impact Weapon 4 | . . . . . 1 . . . . . 1 . . . . . 2 Slashing Weapon 13 | . . . . . 1 1 1 . . 3 1 1 . . 1 3 1 Piercing Weapon 1 | . . . . . . 1 . . . . . . . . . . . Special Melee Weapon . | . . . . . . . . . . . . . . . . . . Unidentified Prototypes 9 | . . . . . 2 2 . 1 . 1 . . . . . . 3 Parts Lost 52 | . . . . . 10 2 . 1 . 4 5 1 . . 1 13 15 Power 9 | . . . . . . 1 . . . . 1 1 . . . 3 3 Propulsion 16 | . . . . . 6 . . . . 2 1 . . . 1 3 3 Utility 18 | . . . . . 2 1 . 1 . 1 1 . . . . 5 7 Weapon 9 | . . . . . 2 . . . . 1 2 . . . . 2 2 Highest Loss Streak 6 | . . . . . 4 1 . 1 . 3 3 1 . . 1 6 6 Average Slot Usage (%) 88 | . 100 100 100 100 87 99 93 90 92 89 78 92 92 92 90 83 77 Engine 3 | . 14 14 14 14 . 1 . 4 7 4 . 3 7 7 6 2 . Core 8 | . . . . . 8 13 15 9 7 9 14 11 7 7 6 7 5 Treads 2 | . . . . . . . . . . . 1 15 15 15 5 . . Hover 9 | . 14 28 28 28 19 23 16 14 15 13 1 . . . 2 1 . Flight 1 | . . . . . 2 . . . . . . . . . 1 10 6 Device 10 | . 14 14 14 14 13 14 15 14 13 7 6 14 15 15 10 7 2 Storage 7 | . 14 14 14 14 9 7 7 7 7 7 7 7 7 7 6 6 5 Processor 5 | . . . . . 4 4 7 6 7 7 7 7 7 7 6 6 6 Hackware 17 | . . . . . 10 15 15 15 17 22 22 15 15 15 28 24 26 Protection 1 | . . . . . . 2 . . . . . . . . . 2 4 Energy Gun 2 | . . . . . 1 2 . . . 4 5 8 1 4 . 1 . Ballistic Gun 5 | . 27 21 28 28 14 . . . . . . 5 7 7 3 7 2 Slashing Weapon 3 | . . . . . . 6 7 7 7 6 5 . . . 5 1 3 Naked Turns . | . . . . . . . . . . . . . . . . . . Heaviest Build 42 | 12 16 16 11 12 35 42 32 32 31 34 39 41 35 37 40 42 33 Greatest Support 56 | 20 20 12 12 12 33 33 39 39 39 41 40 40 40 40 40 22 56 Greatest Overweight (x) 13 | . 3 1 . . 4 1 . 1 . 2 9 12 . . 13 8 10 Average Overweight (x) . | . . . . . . . . . . . 5 . . . 1 2 2 Largest Inventory Capacity 14 | 6 6 6 6 6 14 14 8 8 8 8 8 8 8 8 8 8 8 Average Capacity 7 | 5 6 6 6 6 6 8 8 8 8 8 8 8 8 8 8 8 7 Most Carried 8 | 1 4 6 6 6 8 8 8 8 8 8 8 8 7 8 7 8 8 Average Carried 6 | . 2 5 6 5 5 7 7 7 7 6 6 7 7 7 5 5 6 Final Capacity 14 | 6 6 6 6 6 14 8 8 8 8 8 8 8 8 8 8 8 8 Final Carried 8 | 1 4 6 6 6 8 8 8 8 8 7 8 7 7 7 6 5 6 Class Distribution -------------------- 68% | Hacker-Mutant 10% | Bothacker-Mutant 8% | Mutant 6% | Hacker-Scout 5% | Scavenger-Mutant Dominant Class ---------------- Mutant | -10/Materials Mutant | -10/Mines Mutant | -10/Exiles Mutant | -9/Mines Hacker-Mutant | -8/Materials Hacker-Mutant | -7/Factory Hacker-Mutant | -7/Waste Hacker-Scout | -7/Factory Hacker-Scout | -7/Garrison Hacker-Mutant | -7/Factory Hacker-Mutant | -7/Lower Caves Hacker-Mutant | -7/Lower Caves Hacker-Mutant | -7/Data Miner Hacker-Mutant | -6/Proximity Caves Hacker-Mutant | -6/Factory Hacker-Mutant | -6/Garrison Bothacker-Mutant | -6/Factory Resources | -11 -10 -10 -10 -9 -8 -7 -7 -7 -7 -7 -7 -7 -7 -6 -6 -6 -6 ----------- Run | Scr Mat Min Exi Min Mat Fac Was Fac Gar Fac Low Low Dat Pro Fac Gar Fac Matter Collected 4267 | 276 56 190 . 16 951 178 100 113 171 572 296 212 . 152 234 380 370 Remotely 277 | 105 6 . . . 132 . . . . . . . . . . . 34 Salvage Created 5341 | 57 89 100 . 104 1187 306 470 144 266 581 389 377 . 52 172 522 525 Parts 263 | 2 11 2 . 5 86 16 4 10 18 30 14 12 . 3 10 20 20 Haulers Intercepted 9 | . 1 . . . 4 . . . . 2 . . . . . . 2 Recyclers Shooed . | . . . . . . . . . . . . . . . . . . Parts Field Recycled . | . . . . . . . . . . . . . . . . . . Retrieved Matter . | . . . . . . . . . . . . . . . . . . Parts Self-Destructed 20 | . . . . . . . . . . . 6 7 . 7 . . . Prevented 8 | . . . . . . . . . . . 6 2 . . . . . Kills | -11 -10 -10 -10 -9 -8 -7 -7 -7 -7 -7 -7 -7 -7 -6 -6 -6 -6 ------- Run | Scr Mat Min Exi Min Mat Fac Was Fac Gar Fac Low Low Dat Pro Fac Gar Fac Combat Hostiles Destroyed 82 | . . 6 . 2 18 1 . 1 10 5 10 7 . 1 5 10 6 Melee 9 | . . . . . . . . . 2 . 1 . . . . . 6 Guns 46 | . . 2 . 2 15 1 . . . 3 2 5 . 1 5 10 . Cannons 3 | . . . . . . . . . 3 . . . . . . . . AOE 22 | . . 4 . . 3 . . . 5 2 6 2 . . . . . Classes Destroyed 15 | 1 2 1 . 1 7 . . . . 1 . . . 1 . 1 . Worker 2 | . . . . . 1 . . . . . . . . . . . 1 Builder 1 | . . . . . 1 . . . . . . . . . . . . Hauler 9 | . 1 . . . 4 . . . . 2 . . . . . . 2 Recycler 5 | 1 . 1 . . 1 1 . . . 1 . . . . . . . Operator 6 | . . . . . 2 3 . . . 1 . . . . . . . Watcher 14 | . 2 . . . 5 2 . 3 . 2 . . . . . . . Swarmer 23 | . . . . . 7 . . . 3 . 4 2 . . 4 3 . Grunt 19 | . . . . 2 4 . . . 5 2 3 . . . . 1 2 Brawler 5 | . . . . . 1 . . . 1 . 2 . . . . 1 . Duelist 2 | . . . . . . . . . . . . . . 1 . 1 . Sentry 12 | . . . . . 5 1 . 1 . 1 1 . . . 1 2 . Demolisher 1 | . . . . . . . . . . . . . . . . 1 . Hunter 6 | . . . . . 1 . . . 1 1 . 1 . . . . 2 Programmer 4 | . . . . . . . . . . 1 . . . . . 1 2 Assembled 6 | . . 6 . . . . . . . . . . . . . . . Thug 4 | . . . . . . . . . . . . 4 . . . . . Best Kill Streak 4 | 1 1 2 . 1 4 2 . 1 3 3 4 3 . 1 4 3 3 Combat Bots Only 4 | . . 2 . 1 3 1 . 1 3 2 4 3 . 1 4 3 2 Max Kills in Single Turn 3 | 1 1 1 . 1 2 1 . 1 2 1 3 2 . 1 1 1 1 Gunslinging 1 | . . . . . 1 . . . . . . . . . . . . Exploded 3 | . . 1 . . 2 . . . 2 1 3 2 . . . . . Melee 1 | . . . . . . . . . 1 . 1 . . . . . 1 Uniques/NPCs Destroyed . | . . . . . . . . . . . . . . . . . . Combat | -11 -10 -10 -10 -9 -8 -7 -7 -7 -7 -7 -7 -7 -7 -6 -6 -6 -6 -------- Run | Scr Mat Min Exi Min Mat Fac Was Fac Gar Fac Low Low Dat Pro Fac Gar Fac Damage Taken 6666 | . . 106 . 31 797 614 . 466 235 719 299 249 . 59 355 1267 1469 Core 1431 | . . 15 . . 129 184 . 152 46 44 61 . . 14 52 260 474 Absorbed by Shields 111 | . . . . . . . . . . . . . . . 84 27 . Core Remaining (%) 74 | 100 . . . 94 76 . . . . . . . . 28 . . . Volleys Fired 378 | 3 13 15 . 4 97 23 . 12 24 70 10 14 1 8 16 60 8 Largest 2 | 2 2 2 . 2 2 1 . 1 1 1 2 2 1 2 1 2 1 Hottest 100 | 40 40 60 . 40 90 69 . 69 69 55 100 100 30 78 30 100 30 Shots Fired 561 | 6 26 30 . 8 182 23 . 14 24 73 26 26 1 12 16 84 10 Gun 473 | 6 26 20 . 8 179 15 . . . 58 22 26 . 12 14 81 6 Cannon 25 | . . . . . . 8 . 13 4 . . . . . . . . Launcher 29 | . . 10 . . 3 . . . 11 1 4 . . . . . . Special 34 | . . . . . . . . 1 9 14 . . 1 . 2 3 4 Kinetic 322 | 6 26 20 . 8 167 . . . . . . 11 . 8 14 56 6 Thermal 19 | . . . . . 4 15 . . . . . . . . . . . Explosive 29 | . . 10 . . 3 . . . 11 1 4 . . . . . . Electromagnetic 157 | . . . . . 8 8 . 13 4 58 22 15 . 4 . 25 . Robot Hit Streak 28 | 3 8 10 . 18 24 24 . 23 9 26 28 12 . 7 13 15 25 Robot Miss Streak 4 | 1 2 3 . . 4 1 . 1 2 1 1 1 1 1 1 3 . Penetration Max 1 | . . . . . . . . . . . . 1 . 1 1 . . Secondary Targets 3 | . . 1 . 1 1 . . . . . . . . . . . . Max Gunslinging Chain 1 | . . 1 . 1 1 . . . . . . . . . . . . Shots Hit Robots 477 | 5 21 20 . 8 138 25 7 9 22 58 17 23 . 10 14 57 43 Core Hits 219 | 2 6 16 . 5 58 8 2 3 16 17 20 18 . 6 6 24 12 Critical Hits 4 | . . . . . . . 1 . . . . 2 . . . . 1 Critical Kills 2 | . . . . . . . . . . . . 2 . . . . . Critical Parts Destroyed 1 | . . . . . . . . . . . . . . . . . 1 Melee Attacks 123 | . . . . . . 28 7 12 4 28 3 . . . 1 . 40 Impact 6 | . . . . . . . . . . . . . . . . . 6 Slashing 107 | . . . . . . 18 7 12 4 28 3 . . . 1 . 34 Piercing 10 | . . . . . . 10 . . . . . . . . . . . Sneak Attacks 8 | . . . . . . 1 . . . 2 . . . . . . 5 Combat Hostiles . | . . . . . . . . . . . . . . . . . . Follow-up Attacks 2 | . . . . . . . . . . . . . . . . . 2 Damage Inflicted 11415 | 42 182 404 . 74 1944 820 372 519 1006 1145 795 589 . 270 323 1070 1860 Guns 5537 | 42 182 115 . 74 1811 256 . . . 513 297 490 . 270 323 1070 94 Cannons 697 | . . . . . . 297 . 330 70 . . . . . . . . Explosions 2188 | . . 289 . . 133 . . 189 806 235 437 99 . . . . . Melee 2967 | . . . . . . 267 372 . 117 384 61 . . . . . 1766 Ramming 26 | . . . . . . . . . 13 13 . . . . . . . Kinetic 3824 | 42 182 115 . 74 1605 . . . . . . 252 . 217 323 920 94 Thermal 836 | . . . . . 73 256 . 189 . 183 36 99 . . . . . Explosive 1681 | . . 289 . . 133 . . . 806 52 401 . . . . . . Electromagnetic 2081 | . . . . . 133 297 . 330 70 513 297 238 . 53 . 150 . Impact 106 | . . . . . . . . . . . . . . . . . 106 Slashing 2861 | . . . . . . 267 372 . 117 384 61 . . . . . 1660 Piercing . | . . . . . . . . . . . . . . . . . . Highest Corruption 23 | . . . . . 4 2 2 6 6 14 17 17 17 17 . 8 23 Average Corruption 11 | . . . . . 4 2 2 4 6 7 14 17 17 17 . 7 17 Corruption Purged . | . . . . . . . . . . . . . . . . . . Effects 412 | . . . . . 25 4 5 16 8 69 98 78 6 30 . 7 66 Message Errors 95 | . . . . . 7 2 2 4 3 20 22 15 2 4 . 2 12 Matter Fused 81 | . . . . . 7 . . 5 2 14 15 20 . 3 . 2 13 Heat Flow Errors 38 | . . . . . 4 . . . 1 5 9 8 1 3 . . 7 Energy Discharges 41 | . . . . . 2 1 1 2 . 4 13 7 1 1 . . 9 Data Loss (minor) 39 | . . . . . 4 1 2 2 . 3 11 6 . 5 . 1 4 Data Loss (major) 19 | . . . . . . . . 1 2 4 3 2 . 3 . 1 3 Misfires 21 | . . . . . . . . 2 . 5 9 2 . . . 1 2 Alerts 7 | . . . . . . . . . . . 3 1 . 2 . . 1 Misdirections 39 | . . . . . . . . . . 3 7 12 2 7 . . 8 Targeting Errors 27 | . . . . . . . . . . 9 4 5 . 2 . . 7 Weapon Failures 5 | . . . . . 1 . . . . 2 2 . . . . . . Overload Shots . | . . . . . . . . . . . . . . . . . . Overflow Damage 400 | . . 6 . . 5 23 . 97 90 . 28 . . . . . 151 Projectiles 37 | . . . . . . 18 . 19 . . . . . . . . . Explosions 207 | . . 6 . . 5 . . 78 90 . 28 . . . . . . Melee 156 | . . . . . . 5 . . . . . . . . . . 151 Knockbacks . | . . . . . . . . . . . . . . . . . . Impact . | . . . . . . . . . . . . . . . . . . Kinetic . | . . . . . . . . . . . . . . . . . . Secondary . | . . . . . . . . . . . . . . . . . . Self-Inflicted Damage 212 | . . 6 . . . . . 54 6 6 85 55 . . . . . Shots 5 | . . 1 . . . . . 1 . . 2 1 . . . . . Rammed 3 | . . . . . 1 . . . 1 1 . . . . . . . Targets Rammed 3 | . . . . . 1 . . . 1 1 . . . . . . . Kicked . | . . . . . . . . . . . . . . . . . . Crushed . | . . . . . . . . . . . . . . . . . . Highest Temperature 281 | . 8 12 . 19 254 267 . 184 281 271 253 276 90 268 8 239 212 Average Temperature 76 | . 4 5 . 6 84 107 . 56 55 72 77 87 45 80 5 101 83 Received Heat Transfer 883 | . . . . 24 270 108 . 36 99 39 36 36 . 36 30 106 63 Effects 1 | . . . . . . . . . . 1 . . . . . . . Energy Bleed 1 | . . . . . . . . . . 1 . . . . . . . Siege Activations . | . . . . . . . . . . . . . . . . . . Robots Corrupted 3 | . . . . . . 1 . 1 . . 1 . . . . . . Combat Hostiles 2 | . . . . . . . . 1 . . 1 . . . . . . Parts Fried 12 | . . . . . 1 2 . 2 . 5 1 . . . . . 1 Impact Corruptions 1 | . . . . . . . . . . . . . . . . . 1 Robots Melted . | . . . . . . . . . . . . . . . . . . Combat Hostiles . | . . . . . . . . . . . . . . . . . . Parts Melted . | . . . . . . . . . . . . . . . . . . Heat Transferred 1103 | . . . . . 148 555 . 100 . 200 50 50 . . . . . Parts Sabotaged . | . . . . . . . . . . . . . . . . . . Parts Stolen . | . . . . . . . . . . . . . . . . . . Parts Stripped . | . . . . . . . . . . . . . . . . . . Power Chain Reactions 4 | . . . . . . . . . . 2 1 1 . . . . . Missiles Intercepted . | . . . . . . . . . . . . . . . . . . Alert | -11 -10 -10 -10 -9 -8 -7 -7 -7 -7 -7 -7 -7 -7 -6 -6 -6 -6 ------- Run | Scr Mat Min Exi Min Mat Fac Was Fac Gar Fac Low Low Dat Pro Fac Gar Fac Peak Influence 640 | 5 63 55 . 106 376 103 . 510 640 530 . . . . 443 357 184 Initial 291 | . 2 20 . . 34 29 . . 190 291 . . . . . 202 161 Average 158 | 2 32 36 . 83 134 40 . 49 404 291 . . . . 224 289 93 Maximum Alert Level 2 | . . . . . 1 . . 2 2 2 . . . . 2 1 . Low Security (%) 67 | 100 100 100 . 100 75 100 100 96 16 30 . . . . 48 . 100 Level 1 24 | . . . . . 24 . . 2 37 46 . . . . 21 100 . Level 2 8 | . . . . . . . . . 46 22 . . . . 29 . . Level 3 . | . . . . . . . . . . . . . . . . . . Level 4 . | . . . . . . . . . . . . . . . . . . Level 5 . | . . . . . . . . . . . . . . . . . . High Security . | . . . . . . . . . . . . . . . . . . Max Security . | . . . . . . . . . . . . . . . . . . Squads Dispatched 16 | . . . . . 4 3 . . . 3 . . . . 2 . 4 Investigation 2 | . . . . . . . . . . . . . . . . . 2 Extermination 5 | . . . . . . 1 . . . 2 . . . . . . 2 Reinforcement 6 | . . . . . 3 2 . . . 1 . . . . . . . Assault 1 | . . . . . . . . . . . . . . . 1 . . Garrison 2 | . . . . . 1 . . . . . . . . . 1 . . Intercept . | . . . . . . . . . . . . . . . . . . Construction Impeded . | . . . . . . . . . . . . . . . . . . Haulers Reinforced 1 | . . . . . . . . . . 1 . . . . . . . Stealth | -11 -10 -10 -10 -9 -8 -7 -7 -7 -7 -7 -7 -7 -7 -6 -6 -6 -6 --------- Run | Scr Mat Min Exi Min Mat Fac Was Fac Gar Fac Low Low Dat Pro Fac Gar Fac Distress Signals 8 | . . . . . 5 . . . . 1 . . . . 1 . 1 Communications Jammed . | . . . . . . . . . . . . . . . . . . Distress Signals . | . . . . . . . . . . . . . . . . . . Times Spotted 155 | . 3 6 . 3 38 7 . 4 14 15 9 9 . 4 10 15 18 Peak Tracking Total 5 | . 1 2 . 2 5 2 . 1 3 2 4 4 . 4 4 4 3 Tactical Retreats 4 | . . . . . . . . . . 1 1 1 . . . . 1 Traps | -11 -10 -10 -10 -9 -8 -7 -7 -7 -7 -7 -7 -7 -7 -6 -6 -6 -6 ------- Run | Scr Mat Min Exi Min Mat Fac Was Fac Gar Fac Low Low Dat Pro Fac Gar Fac Traps Triggered 17 | . . . . . 1 3 . . 4 2 . . . . 1 4 2 Indirectly . | . . . . . . . . . . . . . . . . . . Trap Hack Attempts . | . . . . . . . . . . . . . . . . . . Triggered . | . . . . . . . . . . . . . . . . . . Disarmed . | . . . . . . . . . . . . . . . . . . Reprogrammed . | . . . . . . . . . . . . . . . . . . Reused . | . . . . . . . . . . . . . . . . . . Traps Extracted . | . . . . . . . . . . . . . . . . . . Installed . | . . . . . . . . . . . . . . . . . . Triggered 1 | . . . . . . . . . . . . 1 . . . . . Machines | -11 -10 -10 -10 -9 -8 -7 -7 -7 -7 -7 -7 -7 -7 -6 -6 -6 -6 ---------- Run | Scr Mat Min Exi Min Mat Fac Was Fac Gar Fac Low Low Dat Pro Fac Gar Fac Machines Disabled 20 | . . . . . 2 . . 2 2 8 . . . . 2 2 2 Max in Single Turn 2 | . . . . . 1 . . 2 1 1 . . . . 1 1 . Garrison Access 5 | . . . . . 1 . . 1 . 1 . . . . 1 . 1 Garrison Relay 4 | . . . . . . . . . 2 . . . . . . 2 . Machines Sabotaged . | . . . . . . . . . . . . . . . . . . Garrisons Compromised . | . . . . . . . . . . . . . . . . . . Overloaded Fab Kills . | . . . . . . . . . . . . . . . . . . Fab Network Shutdowns 3 | . . . . . . . . 1 . 1 . . . . 1 . . Hacking | -11 -10 -10 -10 -9 -8 -7 -7 -7 -7 -7 -7 -7 -7 -6 -6 -6 -6 --------- Run | Scr Mat Min Exi Min Mat Fac Was Fac Gar Fac Low Low Dat Pro Fac Gar Fac Machines Accessed 61 | . 6 1 . . 10 4 . 11 . 12 1 . 4 . 5 . 7 Terminals 30 | . 6 . . . 6 3 . 6 . 5 . . . . 2 . 2 Fabricators 9 | . . . . . . . . 2 . 3 . . . . 1 . 3 Repair Stations 5 | . . . . . 1 1 . 1 . 1 . . . . . . 1 Recycling Units 1 | . . . . . 1 . . . . . . . . . . . . Scanalyzers 3 | . . . . . 1 . . . . 2 . . . . . . . Garrison Access 7 | . . . . . 1 . . 2 . 1 . . . . 2 . 1 Total Hacks 223 | . 27 1 . . 49 12 . 43 . 32 1 . 25 . 13 . 20 Successful 170 | . 21 1 . . 39 8 . 31 . 22 1 . 25 . 10 . 12 Failed 53 | . 6 . . . 10 4 . 12 . 10 . . . . 3 . 8 Catastrophic 3 | . 1 . . . . . . 1 . . . . . . . . 1 Database Lockouts . | . . . . . . . . . . . . . . . . . . Manual 70 | . 15 . . . 28 5 . 10 . 6 . . . . 4 . 2 Terminals 131 | . 27 . . . 34 10 . 30 . 17 . . . . 5 . 8 Fabricators 20 | . . . . . . . . 5 . 5 . . . . 3 . 7 Repair Stations 20 | . . . . . 8 2 . 5 . 2 . . . . . . 3 Recycling Units 2 | . . . . . 2 . . . . . . . . . . . . Scanalyzers 9 | . . . . . 3 . . . . 6 . . . . . . . Garrison Access 14 | . . . . . 2 . . 3 . 2 . . . . 5 . 2 Terminal Hacks 94 | . 16 1 . . 19 5 . 16 . 5 1 . 25 . 2 . 4 Record 13 | . . . . . . . . 2 . . . . 11 . . . . Part Schematic 7 | . . . . . . 1 . 1 . . . . 5 . . . . Robot Schematic 6 | . . . . . . . . . . . . . 6 . . . . Robot Analysis 11 | . 5 . . . 2 1 . 2 . 1 . . . . . . . Prototype ID Bank 11 | . 2 . . . 2 . . 2 . . . . 3 . 1 . 1 Open Door 2 | . . 1 . . . . . . . . 1 . . . . . . Level Access Points 3 | . . . . . 1 . . 1 . 1 . . . . . . . Branch Access Points 5 | . 1 . . . 2 . . 1 . . . . . . 1 . . Emergency Access Points 1 | . 1 . . . . . . . . . . . . . . . . Machine Index 3 | . 1 . . . . 1 . . . . . . . . . . 1 Terminal Index 1 | . . . . . 1 . . . . . . . . . . . . Repair Station Index 1 | . . . . . 1 . . . . . . . . . . . . Scanalyzer Index 2 | . . . . . 2 . . . . . . . . . . . . Alert Level 4 | . 1 . . . . 1 . 1 . 1 . . . . . . . Unreport Threat 3 | . . . . . 2 . . . . 1 . . . . . . . Locate Traps 5 | . 1 . . . 1 . . 2 . . . . . . . . 1 Dispatch Records 1 | . . . . . . 1 . . . . . . . . . . . Patrol Status 1 | . . . . . 1 . . . . . . . . . . . . Recall Reinforcements 1 | . . . . . 1 . . . . . . . . . . . . Hauler Manifests 3 | . 1 . . . 1 . . 1 . . . . . . . . . Registered Components 3 | . 1 . . . . . . 1 . . . . . . . . 1 Zone Layout 7 | . 2 . . . 2 . . 2 . 1 . . . . . . . Fabricator Hacks 14 | . . . . . . . . 4 . 4 . . . . 3 . 3 Network Status 2 | . . . . . . . . . . 1 . . . . 1 . . Load Schematic 6 | . . . . . . . . 2 . 1 . . . . 1 . 2 Build 6 | . . . . . . . . 2 . 2 . . . . 1 . 1 Repair Station Hacks 17 | . . . . . 8 1 . 4 . 2 . . . . . . 2 Scan Component 9 | . . . . . 4 1 . 2 . 1 . . . . . . 1 Repair 8 | . . . . . 4 . . 2 . 1 . . . . . . 1 Recycling Unit Hacks 2 | . . . . . 2 . . . . . . . . . . . . Report Inventory 1 | . . . . . 1 . . . . . . . . . . . . Retrieve Components 1 | . . . . . 1 . . . . . . . . . . . . Scanalyzer 9 | . . . . . 3 . . . . 6 . . . . . . . Insert Component 5 | . . . . . 2 . . . . 3 . . . . . . . Analyze 4 | . . . . . 1 . . . . 3 . . . . . . . Garrison Access Hacks 11 | . . . . . 1 . . 3 . 2 . . . . 3 . 2 Unlock Access 2 | . . . . . . . . 1 . . . . . . 1 . . Seal Access 4 | . . . . . 1 . . 1 . 1 . . . . . . 1 Coupler Status 5 | . . . . . . . . 1 . 1 . . . . 2 . 1 Unauthorized Hacks 23 | . 5 . . . 6 2 . 4 . 3 . . . . 2 . 1 Terminals 20 | . 5 . . . 5 2 . 4 . 2 . . . . 1 . 1 Track 5 | . 2 . . . 2 . . 1 . . . . . . . . . Botnet 15 | . 3 . . . 3 2 . 3 . 2 . . . . 1 . 1 Fabricators 1 | . . . . . . . . . . 1 . . . . . . . Haulers 1 | . . . . . . . . . . 1 . . . . . . . Repair Stations . | . . . . . . . . . . . . . . . . . . Recycling Units . | . . . . . . . . . . . . . . . . . . Scanalyzers . | . . . . . . . . . . . . . . . . . . Garrison Access 2 | . . . . . 1 . . . . . . . . . 1 . . Broadcast 1 | . . . . . 1 . . . . . . . . . . . . Watchers 1 | . . . . . . . . . . . . . . . 1 . . Data Cores Recovered 2 | . . . . . . 1 . . . 1 . . . . . . . Used 1 | . . . . . . 1 . . . . . . . . . . . Hacking Detections 43 | . 5 . . . 9 4 . 9 . 7 . . . . 3 . 6 Full Trace Events 2 | . . . . . . . . . . . . . . . . . 2 Feedback Events . | . . . . . . . . . . . . . . . . . . Feedback Blocked . | . . . . . . . . . . . . . . . . . . Robot Schematics Acquired 6 | . . . . . . . . . . . . . 6 . . . . Robots Built 1 | . . . . . . . . . . 1 . . . . . . . Matter 219 | . . . . . . . . . . 219 . . . . . . . Time 116 | . . . . . . . . . . 116 . . . . . . . Total Robot Build Rating 3 | . . . . . . . . . . 3 . . . . . . . Part Schematics Acquired 11 | . . . . . 1 1 . 1 . 3 . . 5 . . . . Parts Built 5 | . . . . . . . . 3 . 1 . . . . . . 1 Matter 1034 | . . . . . . . . 358 . 168 . . . . 190 . 318 Time 378 | . . . . . . . . 115 . 84 . . . . 95 . 84 Total Part Build Rating 23 | . . . . . . . . 13 . 4 . . . . . . 6 Parts Repaired 8 | . . . . . 4 . . 2 . 1 . . . . . . 1 Time 420 | . . . . . 258 . . 130 . 19 . . . . . . 13 Parts Recycled . | . . . . . . . . . . . . . . . . . . Recycled Matter . | . . . . . . . . . . . . . . . . . . Retrieved Matter . | . . . . . . . . . . . . . . . . . . Retrieved Components 10 | . . . . . 10 . . . . . . . . . . . . Parts Scanalyzed 4 | . . . . . 1 . . . . 3 . . . . . . . Part Schematics Acquired 4 | . . . . . 1 . . . . 3 . . . . . . . Parts Damaged 2 | . . . . . 1 . . . . 1 . . . . . . . Bothacking | -11 -10 -10 -10 -9 -8 -7 -7 -7 -7 -7 -7 -7 -7 -6 -6 -6 -6 ------------ Run | Scr Mat Min Exi Min Mat Fac Was Fac Gar Fac Low Low Dat Pro Fac Gar Fac Used RIF Installer 1 | . . . . . . . . . 1 . . . . . . . . Robots Hacked 20 | . . . . . . . . 1 4 7 . . 1 . 1 2 4 Non-combat 8 | . . . . . . . . 1 . 6 . . . . 1 . . Combat 12 | . . . . . . . . . 4 1 . . 1 . . 2 4 Robot Hacks Applied 28 | . . . . . . . . 1 6 13 . . 1 . 1 2 4 parse_system 6 | . . . . . . . . . 2 2 . . 1 . . . 1 no_distress 1 | . . . . . . . . . . 1 . . . . . . . map_earth 1 | . . . . . . . . . . 1 . . . . . . . find_fabricator 1 | . . . . . . . . . . 1 . . . . . . . drop_inventory 1 | . . . . . . . . . . 1 . . . . . . . find_recycling 2 | . . . . . . . . 1 . 1 . . . . . . . find_terminals 1 | . . . . . . . . . . 1 . . . . . . . summon_haulers 1 | . . . . . . . . . . 1 . . . . . . . map_route 2 | . . . . . . . . . . 1 . . . . 1 . . overload_power 1 | . . . . . . . . . . . . . . . . 1 . wipe_record 1 | . . . . . . . . . . 1 . . . . . . . disable_weapons 1 | . . . . . . . . . 1 . . . . . . . . overwrite_iff 2 | . . . . . . . . . 2 . . . . . . . . formatsys_high 7 | . . . . . . . . . 1 2 . . . . . 1 3 Relay Couplers Released 22 | . . . . . . . . . 10 . . . . . 2 7 3 Machine Destruction 22 | . . . . . . . . . 10 . . . . . 2 7 3 Attached 12 | . . . . . . . . . 2 2 . . . . 2 4 2 Robots Rewired . | . . . . . . . . . . . . . . . . . . Allies Hacked 1 | . . . . . . . . . . 1 . . . . . . . Hacks Repelled . | . . . . . . . . . . . . . . . . . . Allies | -11 -10 -10 -10 -9 -8 -7 -7 -7 -7 -7 -7 -7 -7 -6 -6 -6 -6 -------- Run | Scr Mat Min Exi Min Mat Fac Was Fac Gar Fac Low Low Dat Pro Fac Gar Fac Total Allies 18 | . . 5 . . . . . . 2 6 . . . 1 . 1 3 Largest Group 5 | . . 5 5 3 3 . . . 2 5 1 1 . 1 1 1 3 Highest-Rated Group 140 | . . 83 83 40 40 . . . 64 140 17 15 . 94 94 9 99 Highest-Rated Ally 94 | . . 31 31 16 16 . . . 32 31 17 15 . 94 94 9 41 Total Orders 11 | . . . . . . . . . . 1 . 6 . . 2 2 . ROAM 1 | . . . . . . . . . . 1 . . . . . . . EXPLORE 5 | . . . . . . . . . . . . 3 . . 1 1 . RETURN 5 | . . . . . . . . . . . . 3 . . 1 1 . Ally Attacks 172 | . . . . 11 37 . . . 3 42 . 30 . 10 11 2 26 Total Damage 3246 | . . . . 140 382 . . . 198 682 . 98 . 324 482 13 927 Kills 28 | . . . . 2 6 . . . 1 4 . 1 . 3 4 . 7 Allies Corrupted . | . . . . . . . . . . . . . . . . . . Allies Melted . | . . . . . . . . . . . . . . . . . . Intel | -11 -10 -10 -10 -9 -8 -7 -7 -7 -7 -7 -7 -7 -7 -6 -6 -6 -6 ------- Run | Scr Mat Min Exi Min Mat Fac Was Fac Gar Fac Low Low Dat Pro Fac Gar Fac Robot Analysis Total 11 | . 5 . . . 2 1 . 2 . 1 . . . . . . . Derelict Logs Recovered 5 | . . 1 . 1 . . . . . . 1 1 . 1 . . . Drone Launches 13 | . . . . . . . . . . . . 9 . . 2 2 . Drone Recoveries 10 | . . . . . . . . . . . . 8 . . 2 . . Exploration | -11 -10 -10 -10 -9 -8 -7 -7 -7 -7 -7 -7 -7 -7 -6 -6 -6 -6 ------------- Run | Scr Mat Min Exi Min Mat Fac Was Fac Gar Fac Low Low Dat Pro Fac Gar Fac Turns Passed 14304 | 58 275 544 160 248 1512 893 214 822 277 1729 2221 1345 143 494 1018 901 1450 Spaces Moved 9510 | 45 299 677 178 347 1160 897 377 691 275 1474 634 754 88 294 466 288 566 Core 349 | 2 1 . . . 1 . . . . . 302 4 . . 4 3 32 Treads 1681 | . . . . . . . . . . . 130 750 88 294 417 . 2 Legs 212 | . . . . . 28 . . . . . . . . . . . 184 Wheels 171 | 43 128 . . . . . . . . . . . . . . . . Hover 6507 | . 170 677 178 347 1053 897 377 691 275 1474 202 . . . . 71 95 Flight 590 | . . . . . 78 . . . . . . . . . 45 214 253 Fastest Speed 42 | 50 56 56 56 56 42 42 42 51 56 51 160 160 160 160 160 80 94 Average Speed 112 | 78 68 64 56 56 66 53 48 52 56 76 340 168 160 160 189 216 196 Slowest Speed 700 | 80 200 116 56 56 280 102 51 110 56 180 500 650 160 160 700 450 550 Overloaded Moves . | . . . . . . . . . . . . . . . . . . Propulsion Burnouts . | . . . . . . . . . . . . . . . . . . Robots Hopped . | . . . . . . . . . . . . . . . . . . Cave-ins Triggered 3 | . . . . . . 1 . 1 . 1 . . . . . . . Exploration Rate (%) 50 | 3 45 98 56 74 62 26 95 24 46 40 70 87 72 45 12 43 14 Regions Visited 17 Branch Regions 7 Pre-discovered Areas 3 | . . 1 . 1 . . . . . . . . 1 . . . . Known Exits Taken 9 | . 1 . . . 1 . . 1 . 1 1 1 1 1 1 . . Unknown Exits Taken 4 | 1 . 1 1 1 . . . . . . . . . . . . . Scrap Searched 9 | . . 1 . 1 . . . . . . 1 3 . 3 . . . Spaces Dug 64 | . . . . . 6 19 . 12 . 2 23 . . . 1 . 1 Terrain Destroyed 369 | . . 54 . . 65 19 . 29 108 11 69 7 . 1 3 2 1 Melee 35 | . . . . . . 19 . 12 . 2 . . . . 1 . 1 Projectile 7 | . . . . . . . . . . . . 2 . 1 2 2 . AOE 327 | . . 54 . . 65 . . 17 108 9 69 5 . . . . . Terrain Rammed . | . . . . . . . . . . . . . . . . . . Walls Destroyed . | . . . . . . . . . . . . . . . . . . Machines Disabled . | . . . . . . . . . . . . . . . . . . Actions | -11 -10 -10 -10 -9 -8 -7 -7 -7 -7 -7 -7 -7 -7 -6 -6 -6 -6 --------- Run | Scr Mat Min Exi Min Mat Fac Was Fac Gar Fac Low Low Dat Pro Fac Gar Fac Total 12371 | 59 346 755 237 394 1718 1241 399 1122 371 1962 667 805 89 306 581 482 837 Wait 1791 | 4 24 50 60 36 377 228 . 380 11 339 3 24 . . 64 34 157 Move 9492 | 44 298 676 177 346 1159 897 376 689 273 1473 633 753 87 293 466 286 566 Hop . | . . . . . . . . . . . . . . . . . . Pick Up 82 | 1 3 4 . 2 12 12 4 4 6 11 4 1 . 1 5 5 7 Fast Attach 110 | 7 3 2 . 2 31 7 1 9 . 6 4 4 . . 8 12 14 Attach 35 | . . . . . 3 6 . . . 8 3 1 . . 4 5 5 Detach 1 | . . . . . . . . 1 . . . . . . . . . Swap 84 | . 2 3 . . 13 9 5 3 6 15 6 3 1 2 6 7 3 Drop 119 | . 3 5 . 4 25 18 6 11 6 11 1 5 . 2 11 6 5 Fire 378 | 3 13 15 . 4 97 23 . 12 24 70 10 14 1 8 16 60 8 Melee 119 | . . . . . . 28 7 12 4 28 3 . . . 1 . 36 Ram 3 | . . . . . 1 . . . 1 1 . . . . . . . Kick . | . . . . . . . . . . . . . . . . . . Crush . | . . . . . . . . . . . . . . . . . . Escape Stasis 153 | . . . . . . 13 . 1 36 . . . . . . 67 36 Rewire 4 | . . . . . . . . . 4 . . . . . . . . Trap . | . . . . . . . . . . . . . . . . . . Miscellaneous . | . . . . . . . . . . . . . . . . . . Route ------- -11/Scrapyard -10/Materials (discovered 3 exits: [*Mat] / *Min x2) -10/Mines (discovered 3 exits: [*Mat x2] / [*Exi]) -10/Exiles -9/Mines -8/Materials (discovered 3 exits: *Fac x3) -7/Factory -7/Waste -7/Factory (discovered 7 exits: Fac x4 / Low x2 / Gar) -7/Garrison -7/Factory (discovered 5 exits: *Fac x4 / *Low) -7/Lower Caves -7/Lower Caves (discovered 2 exits: *Fac / *Dat) -7/Data Miner -6/Proximity Caves -6/Factory (discovered 3 exits: Low x2 / Gar) -6/Garrison -6/Factory History --------- Turn | Location | Event 2 | -11/Scrapyard | Met Revision 17 39 | -11/Scrapyard | Discovered new exit (range 15) 59 | -11/Scrapyard | Entered Materials 148 | -10/Materials | Discovered new exit (range 16) 224 | -10/Materials | Discovered new exit (range 16) 298 | -10/Materials | Identified exit to Mines 313 | -10/Materials | Build established: Mutant 334 | -10/Materials | Entered Mines 335 | -10/Mines | Assembled infested the area 340 | -10/Mines | Found the Drone Emporium 347 | -10/Mines | Found Prototype Device 467 | -10/Mines | Found a hidden stash of uninstalled traps 492 | -10/Mines | Learned Materials security intel 518 | -10/Mines | Discovered new exit (range 9) 519 | -10/Mines | Learned location of Storage (-9) 611 | -10/Mines | Deemed a non-threat by the Exiles lab entrance 611 | -10/Mines | Discovered new exit (range 5) 684 | -10/Mines | Discovered new exit (range 6) 689 | -10/Mines | Assisted by bots powering up and referring to "LRC-V3" 878 | -10/Mines | Entered Exiles 878 | -10/Exiles | Accompanied by 5 allies 893 | -10/Exiles | Met 8R-AWN 901 | -10/Exiles | Met EX-HEX 908 | -10/Exiles | Led the pair of lost Derelicts to a safe place 928 | -10/Exiles | Met EX-DEC 970 | -10/Exiles | Discovered new exit (range 14) 1038 | -10/Exiles | Entered Mines 1038 | -9/Mines | Accompanied by 3 allies 1061 | -9/Mines | Found a damaged Exp. Sensor Array with a note attached 1062 | -9/Mines | Found Prototype Device 1247 | -9/Mines | Discovered new exit (range 5) 1286 | -9/Mines | Entered Materials 1286 | -8/Materials | Accompanied by 3 allies 1286 | -8/Materials | Evolved 4 slots: Propulsion x1, Utility x3 1744 | -8/Materials | Discovered new exit (range 16) 1796 | -8/Materials | Lost 4 parts (3n1u) 2108 | -8/Materials | Discovered new exit (range 3) 2120 | -8/Materials | Identified Exp. Sensor Array 2120 | -8/Materials | Identified Thief Drone Bay 2360 | -8/Materials | Repaired Broken Exp. Sensor Array 2421 | -8/Materials | Repaired Aerolev Unit 2483 | -8/Materials | Repaired Aerolev Unit 2522 | -8/Materials | Repaired Lgt. Nuclear Core 2572 | -8/Materials | Build established: Hacker-Mutant 2755 | -8/Materials | Identified exit to Factory 2798 | -8/Materials | Entered Factory 2798 | -7/Factory | Evolved 2 slots: Power x1, Utility x1 2948 | -7/Factory | Crushed by falling debris 3018 | -7/Factory | Discovered new exit (range 16) 3691 | -7/Factory | Sucked down chute 3691 | -7/Factory | Entered Waste 3691 | -7/Waste | The area was eerily silent 3833 | -7/Waste | Discovered new exit (range 12) 3905 | -7/Waste | Identified exit to Factory 3905 | -7/Waste | Entered Factory 3956 | -7/Factory | Identified exit to Factory 4008 | -7/Factory | Identified exit to Lower Caves 4111 | -7/Factory | Crushed by falling debris 4348 | -7/Factory | Repaired Gravmag Array 4430 | -7/Factory | Repaired Exp. Sensor Array 4589 | -7/Factory | Fabricated Gravmag System (x2) 4702 | -7/Factory | Local fabrication network quarantined 4704 | -7/Factory | Fabricated Gravmag Array (x1) 4726 | -7/Factory | Build established: Hacker-Scout 4727 | -7/Factory | Identified exit to Garrison 4727 | -7/Factory | Entered Garrison 4730 | -7/Garrison | Installed Relay Interface Framework 4772 | -7/Garrison | Triggered checkpoint 4774 | -7/Garrison | Core integrity fell below 50% 4782 | -7/Garrison | Garrison Relay disabled 4870 | -7/Garrison | Triggered checkpoint 4934 | -7/Garrison | Triggered checkpoint 4967 | -7/Garrison | Garrison Relay disabled 4988 | -7/Garrison | Discovered new exit (range 21) 5004 | -7/Garrison | Entered Factory 5144 | -7/Factory | Repaired Lgt. Deuterium Engine 5232 | -7/Factory | Build established: Hacker-Mutant 5300 | -7/Factory | Fabricated O-24 Administrator (x1) 5763 | -7/Factory | Fabricated Remote Datajack (x1) 5815 | -7/Factory | Local fabrication network quarantined 6204 | -7/Factory | Discovered exit to Lower Caves (range 32) 6404 | -7/Factory | Crushed by falling debris 6404 | -7/Factory | System corruption reached 10% 6435 | -7/Factory | Lost 3 parts (1n1u1w) 6733 | -7/Factory | Entered Lower Caves 6733 | -7/Lower Caves | Accompanied by 1 ally 6996 | -7/Lower Caves | Encountered a Warlord checkpoint 7219 | -7/Lower Caves | Lost 3 parts (1n2w) 7542 | -7/Lower Caves | Learned Factory emergency access door positions 8135 | -7/Lower Caves | Discovered new exit (range 5) 8165 | -7/Lower Caves | Identified exit to Lower Caves 8678 | -7/Lower Caves | Attracted the attention of an 0b10 checkpoint 8954 | -7/Lower Caves | Entered another Lower Caves area 8954 | -7/Lower Caves | Accompanied by 1 ally 8967 | -7/Lower Caves | Encountered a Warlord checkpoint 9127 | -7/Lower Caves | Discovered exit to Factory (range 42) 9302 | -7/Lower Caves | Identified exit to Data Miner 9648 | -7/Lower Caves | Ambushed by wild Derelicts 10299 | -7/Lower Caves | Entered Data Miner 10299 | -7/Data Miner | Discovered new exit (range 6) 10330 | -7/Data Miner | Met Data Miner 10374 | -7/Data Miner | Learned location of Section 7 (-2) 10374 | -7/Data Miner | Acquired the access code to Warlord's prototype stash 10403 | -7/Data Miner | Received God Mode back door access code from Data Miner 10440 | -7/Data Miner | Identified exit to Proximity Caves 10442 | -7/Data Miner | Entered Proximity Caves 10644 | -6/Proximity Caves | Escorted by Enhanced Grunt 10901 | -6/Proximity Caves | Discovered exit to Factory (range 5) 10935 | -6/Proximity Caves | Learned 4 Factory zone layouts 10936 | -6/Proximity Caves | Entered Factory 10936 | -6/Factory | Accompanied by 1 ally 10936 | -6/Factory | Evolved 2 slots: Utility x2 11344 | -6/Factory | Identified exit to Lower Caves 11432 | -6/Factory | Local fabrication network quarantined 11877 | -6/Factory | Garrison activated, responded to threat 11954 | -6/Factory | Identified exit to Garrison 11954 | -6/Factory | Entered Garrison 12074 | -6/Garrison | Triggered checkpoint 12145 | -6/Garrison | Garrison Relay disabled 12338 | -6/Garrison | Triggered checkpoint 12340 | -6/Garrison | Triggered checkpoint 12401 | -6/Garrison | Lost 6 parts (1p2n2u1w) 12566 | -6/Garrison | Lost 4 parts (2p1u1w) 12632 | -6/Garrison | Triggered checkpoint 12675 | -6/Garrison | Lost 3 parts (1n2u) 12722 | -6/Garrison | Garrison Relay disabled 12815 | -6/Garrison | Discovered new exit (range 15) 12849 | -6/Garrison | Identified exit to Factory 12855 | -6/Garrison | Entered Factory 13053 | -6/Factory | Build established: Bothacker-Mutant 13179 | -6/Factory | System corruption reached 10% 13244 | -6/Factory | Lost 5 parts (1n2u2w) 13526 | -6/Factory | Repaired Med. Storage Unit 13684 | -6/Factory | Fabricated Plasma Sword (x1) 13903 | -6/Factory | Core integrity fell below 50% 13969 | -6/Factory | Core integrity fell below 20% 13971 | -6/Factory | Lost 6 parts (2p1n3u) 14234 | -6/Factory | Incoming investigation squad redirected 14305 | -6/Factory | Self-destructed Last Messages --------------- 14238_ P-60 Hacker suffers critical hit. 14238_ Destroyed Shock Rifle. 14246_ P-60 Hacker destroyed. 14248_ System corrupted: Heat flow error (+190). 14248_ Acquired 20 matter. 14260_ A-15 Conveyor collects Magnetic Acceleration Cannon. 14266_ A-15 Conveyor collects Adv. Weight Redist. System. 14267_ R-10 Processor collects Imp. Heat Sink. 14269_ A-15 Conveyor collects Adv. Weight Redist. System. 14282_ System corrupted: Matter fused (-9). 14294_ Sneak attack on A-15 Conveyor. 14294_ A-15 Conveyor Med. Treads severed. 14294_ Sneak attack on A-15 Conveyor. 14294_ Mace follow-up attack on A-15 Conveyor. 14294_ Destroyed Imp. Ion Engine. 14294_ A-15 Conveyor system corrupted by crushing effect. 14295_ A-15 Conveyor system terminally corrupted. 14295_ Transport Network Coupler fried. 14299_ Acquired Med. Treads. 14304_ Acquired 29 matter. Map ----- +----------------------------------------------------+ | ??###%###????????????????????????????????????????? | | ### #????????????????????????????????????????? | | %% #####????????????????????????????????????? | | % #????????????????????????????????????? | | ### #????????????????????????????????????? | | ## ### #######################??????????????? | | %########## + #??????????????? | | + =# #### """" """" #??????????????? | | %# # """ #??# """" """" !#??????????????? | | # # """ #??# """" """" #??????????????? | | # # """ #??# """" """" %#??????????????? | | # # #### #??????????????? | | # # ^ + """" ! =#??????????????? | | + # ^ ### """" #######????????? | | # # ^ #?# """" "F "" + #????????? | | ## #""" #?# """" """"" #######????????? | | ## """" #"R #?# """"" #??????????????? | | ## #""" #?# ! #??????????????? | | ## # "" ###+#####+##+##############???? | | ## # ??? | | ## """# ??? | | ## """# #####+#### ??? | | ## F"# #????????# """ ??? | | ## ""# #????????# """ ^^ ??? | | ## # #????????# """ ???? | | ########### #????????# ! @ ???? | | #?????????# #????????# ] ] #############????? | | #?????????# #????????# !! #????????????????? | | ########### #????????# #????????????????? | | #????????# """#????????????????? | | #############????????# """#????????????????? | | #????????????????????# F"#????????????????? | | #????????????????????# ""#????????????????? | | #????????????????????# #????????????????? | | +?? ?????????????????# #????????????????? | | #?""?????????????????#+## #????????????????? | | # "Y" ?????????????????# #????????????????? | | # " " #??????????????# #????????????????? | | + ?????????????????# #????????????????? | | #???????????????????????# #????????????????? | | #???????????????????????# ?????????????????? | | #???????????????????????? ???????????????????? | | #????????????????????????????????????????????????? | | #????????????????????????????????????????????????? | | ## #???????????????????????????????????????????? | | ???????????????????????????????????????? | | ## ##??????????????????????????????????????????? | | ??? ##???????????????????????????????????????????? | | ????#????????????????????????????????????????????? | | ?????????????????????????????????????????????????? | +----------------------------------------------------+ Best States ------------- Heat Dissipation 45 Energy Generation 31 Energy Capacity 375 Matter Stores 300 Matter Capacity 300 Sight Range 22 Robot Scan Range 30 Terrain Scan Range 20 Terrain Scan Density 10 ECM Strength 2 Jamming Range 8 Armor Coverage 225 Resistance: KI 20 Resistance: TH 20 Resistance: EX 20 Resistance: EM 20 Resistance: I 20 Resistance: S 20 Resistance: P 20 Utility Shielding 66 Evasion (%) 56 Recoil Reduction 2 Offensive Hacking 34 Defensive Hacking 20 Relay Coupler Types 162 Relay Coupler Value 4 Item Schematics ----------------- Exp. Sensor Array | -8/Materials | Scanalyzed Gravmag System | -7/Factory | Hacked Gravmag Array | -7/Factory | Hacked Remote Datajack | -7/Factory | Scanalyzed Chainsword | -7/Factory | Scanalyzed Hacking Suite | -7/Factory | Scanalyzed Combat Drone Bay | -7/Data Miner | Free Lgt. Regenerative Plating | -7/Data Miner | Free Exp. Targeting Computer | -7/Data Miner | Free Exp. Transmission Jammer | -7/Data Miner | Free Plasma Sword | -7/Data Miner | Free Robot Schematics ------------------ S-27 Virus | -7/Data Miner | Free G-50 Soldier | -7/Data Miner | Free L-41 Fighter | -7/Data Miner | Free H-66 Slayer | -7/Data Miner | Free P-70 Sage | -7/Data Miner | Free I-36 Angel | -7/Data Miner | Free Fabricated ------------ Gravmag System | x2 | -7/Factory Gravmag Array | x1 | -7/Factory O-24 Administrator | x1 | -7/Factory | Preloaded Remote Datajack | x1 | -7/Factory Plasma Sword | x1 | -6/Factory Alien Tech Used ----------------- None Achievements -------------- Assimilation Complete Error 47 Maybe Next Time I'll Detach My Launcher What Is This Thing? Challenges ------------ None Game ------ Seed MatterCoolingStreamer Manual? 0 Play Time 02:13:24 Cumulative 34.5 hours Start 2021.02.21 @ 10:50:37 End 2021.03.04 @ 21:40:34 Sessions 1 Manual Loads 0 Difficulty Adventurer Special Mode None Game No. 39 Rogue 3 Adventurer 36 Explorer 0 Win Type - Total 0 Types 0/0/0/0/0/0/0/0/0 Lore% 33 Gallery% 43 Achievement% 38 Wizard Run 0 Options --------- ASCII 0 Keyboard 0 Movement Arrows Keybinds 0 Fullscreen 1 Font 16/SmallcapsGlow Map View 75x55 Tactical HUD 1 Map Filters NONE Filters NONE Steam 0 RUN: a6da735d-0cfc-4386-82f7-679dd352e557